Cogmind - Beta 11 --- EXPLORER MODE // 2022.04.04 @ 21:12:09 Player: Grimbling Result: Destroyed by P-60 Hacker with Shock Rifle Performance ------------- Evolutions (1) 500 Regions Visited (5) 1000 Robots Destroyed (22) 110 Value Destroyed (679) 679 Prototype IDs (6) 120 Alien Tech Used (0) 0 Bonus (314) 314 TOTAL SCORE: 2723 Bonus ------- Follower Combat Kills 14 Aligned with FarCom 300 Cogmind --------- Core Integrity 0/400 Matter 247/300 Energy 86/100 System Corruption 6% Temperature Cool (2) Movement Core (50) Location -9/Exiles Parts ------- > --- POWER (1) -------- (None) > --- PROPULSION (3) --- (None) > --- UTILITY (4) ------ (None) > --- WEAPON (2) ------- (None) > --- INVENTORY (5) ---- Ion Engine Power Shielding Tractor Beam Improved Medium Laser Light Assault Rifle Peak State ------------ > --- POWER ------------ Ion Engine > --- PROPULSION ------- Aluminum Leg Aluminum Leg Aluminum Leg > --- UTILITY ---------- Medium Storage Unit Seismic Detector Targeting Computer Skeleton Box > --- WEAPON ----------- Light Assault Rifle Light Assault Rifle > --- INVENTORY -------- Ion Engine Light Nuclear Core Aluminum Leg Medium Matter Pod High-capacity Matter Pod Power Shielding Tractor Beam Improved Medium Laser Improved Medium Laser Grenade Launcher [Rating: 16] Favorites ----------- Power Ion Engine Engine Ion Engine Power Core Light Nuclear Core Propulsion Aluminum Leg Leg Aluminum Leg Utility Targeting Computer Device Seismic Detector Storage Medium Storage Unit Processor Targeting Computer Protection Light Armor Plating Weapon Light Assault Rifle Energy Gun Improved Medium Laser Ballistic Gun Light Assault Rifle Launcher Grenade Launcher Build | -11 -10 -10 -9 -9 -9 ------- Run | Scr Mat Min Mat Min Exi Slots Evolved 3 | . 1 . 2 . . Power . | . . . . . . Propulsion 1 | . . . 1 . . Utility 2 | . 1 . 1 . . Weapon . | . . . . . . Parts Attached 27 | 7 4 3 4 2 7 Power 2 | 1 . . . . 1 Engine 1 | 1 . . . . . Core 1 | . . . . . 1 Reactor . | . . . . . . Propulsion 8 | 2 1 1 3 . 1 Treads . | . . . . . . Leg 8 | 2 1 1 3 . 1 Wheel . | . . . . . . Hover . | . . . . . . Flight . | . . . . . . Utility 6 | 2 1 . 1 . 2 Device 2 | . 1 . . . 1 Storage 1 | 1 . . . . . Processor 1 | 1 . . . . . Hackware . | . . . . . . Protection 2 | . . . 1 . 1 Artifact . | . . . . . . Weapon 11 | 2 2 2 . 2 3 Energy Gun 4 | 1 1 2 . . . Energy Cannon . | . . . . . . Ballistic Gun 5 | 1 1 . . 2 1 Ballistic Cannon . | . . . . . . Launcher 2 | . . . . . 2 Special Weapon . | . . . . . . Impact Weapon . | . . . . . . Slashing Weapon . | . . . . . . Piercing Weapon . | . . . . . . Special Melee Weapon . | . . . . . . Unidentified Prototypes 1 | . . . . . 1 Parts Lost 9 | . . 3 . . 6 Power 1 | . . . . . 1 Propulsion 5 | . . 1 . . 4 Utility 1 | . . . . . 1 Weapon 2 | . . 2 . . . Highest Loss Streak 6 | . . 2 . . 6 To Critical Strikes . | . . . . . . Average Slot Usage (%) 97 | . 96 99 95 100 97 Engine 10 | . 12 12 10 10 9 Leg 27 | . 25 25 30 30 29 Device 12 | . 8 12 10 10 16 Storage 10 | . 12 12 10 10 9 Processor 10 | . 12 12 10 10 9 Protection 2 | . . . 5 10 3 Energy Gun 6 | . 7 5 20 12 . Ballistic Gun 15 | . 16 18 . 7 19 Naked Turns 4 | . . . . . 4 Heaviest Build 25 | 18 20 22 25 25 22 Greatest Support 30 | 20 20 20 30 30 30 Greatest Overweight (x) 1 | . . 1 . . . Average Overweight (x) . | . . . . . . Largest Inventory Capacity 10 | 10 10 10 10 10 10 Average Capacity 9 | 7 10 10 10 10 9 Most Carried 10 | 5 10 10 9 10 10 Average Carried 9 | 1 9 9 8 9 9 Final Capacity 10 | 10 10 10 10 10 5 Final Carried 10 | 5 10 8 9 10 5 Class Distribution -------------------- 89% | Hacker-Mutant 10% | Scavenger-Mutant Dominant Class ---------------- Hacker-Mutant | -10/Materials Hacker-Mutant | -10/Mines Hacker-Mutant | -9/Materials Hacker-Mutant | -9/Mines Hacker-Mutant | -9/Exiles Resources | -11 -10 -10 -9 -9 -9 ----------- Run | Scr Mat Min Mat Min Exi Matter Collected 625 | 111 368 33 40 20 53 Remotely . | . . . . . . Salvage Created 847 | . 354 106 271 16 100 Parts 48 | . 22 7 13 2 4 Haulers Intercepted . | . . . . . . Recyclers Shooed . | . . . . . . Parts Field Recycled . | . . . . . . Retrieved Matter . | . . . . . . Parts Self-Destructed . | . . . . . . Prevented . | . . . . . . Kills | -11 -10 -10 -9 -9 -9 ------- Run | Scr Mat Min Mat Min Exi Combat Hostiles Destroyed 17 | . 7 2 5 1 2 Guns 17 | . 7 2 5 1 2 Classes Destroyed 9 | . 2 4 1 1 1 Tunneler 1 | . . 1 . . . Recycler 1 | . . 1 . . . Watcher 4 | . 3 . 1 . . Swarmer 1 | . . . . 1 . Grunt 11 | . 7 . 3 . 1 Brawler 1 | . . . . . 1 Sentry 2 | . . . 2 . . Demolisher 1 | . . 1 . . . Assembled 1 | . . 1 . . . Best Kill Streak 3 | . 3 2 2 1 2 Combat Bots Only 3 | . 3 1 2 1 2 Max Kills in Single Turn 1 | . 1 1 1 1 1 Gunslinging . | . . . . . . Exploded . | . . . . . . Melee . | . . . . . . Uniques/NPCs Destroyed . | . . . . . . Combat | -11 -10 -10 -9 -9 -9 -------- Run | Scr Mat Min Mat Min Exi Damage Taken 1634 | . 179 439 89 18 909 Core 497 | . 22 69 7 . 399 Absorbed by Shields . | . . . . . . Core Remaining (%) 81 | 100 . 63 . . . Volleys Fired 59 | . 21 10 12 3 13 Largest 2 | . 2 2 2 2 2 Hottest 112 | . 60 112 112 112 40 Shots Fired 113 | . 42 20 24 6 21 Gun 108 | . 42 20 24 6 16 Cannon . | . . . . . . Launcher 5 | . . . . . 5 Special . | . . . . . . Kinetic 57 | . 37 4 . . 16 Thermal 46 | . . 16 24 6 . Explosive 5 | . . . . . 5 Electromagnetic 5 | . 5 . . . . Robot Hit Streak 33 | . 27 33 10 2 5 Robot Miss Streak 2 | . 1 1 2 2 1 Penetration Max . | . . . . . . Secondary Targets 3 | . 1 1 . . 1 Max Gunslinging Chain 1 | . 1 1 . . 1 Shots Hit Robots 89 | . 38 17 19 3 12 Core Hits 45 | . 20 10 9 1 5 Critical Kills . | . . . . . . Critical Parts Destroyed . | . . . . . . Critical Strikes 1 | . . . 1 . . Burn 1 | . . . 1 . . Melee Attacks . | . . . . . . Impact . | . . . . . . Slashing . | . . . . . . Piercing . | . . . . . . Sneak Attacks . | . . . . . . Combat Hostiles . | . . . . . . Follow-up Attacks . | . . . . . . Damage Inflicted 1228 | . 464 279 331 51 103 Guns 1184 | . 420 279 331 51 103 Cannons . | . . . . . . Explosions 44 | . 44 . . . . Melee . | . . . . . . Ramming . | . . . . . . Kinetic 478 | . 335 40 . . 103 Thermal 665 | . 44 239 331 51 . Explosive . | . . . . . . Electromagnetic 85 | . 85 . . . . Impact . | . . . . . . Slashing . | . . . . . . Piercing . | . . . . . . Highest Corruption 3 | . . . . . 3 Average Corruption 2 | . . . . . 2 Corruption Purged . | . . . . . . Corruption Blocked . | . . . . . . Effects 1 | . . . . . 1 Energy Discharges 1 | . . . . . 1 Overload Shots . | . . . . . . Overflow Damage . | . . . . . . Projectiles . | . . . . . . Explosions . | . . . . . . Melee . | . . . . . . Knockbacks . | . . . . . . Impact . | . . . . . . Kinetic . | . . . . . . Secondary . | . . . . . . Self-Inflicted Damage 22 | . 22 . . . . Shots 1 | . 1 . . . . Rammed . | . . . . . . Targets Rammed . | . . . . . . Kicked . | . . . . . . Crushed . | . . . . . . Highest Temperature 204 | . 32 204 174 153 3 Average Temperature 60 | . 13 93 62 79 2 Received Heat Transfer 624 | . 147 60 57 . 360 Siege Activations . | . . . . . . Robots Corrupted . | . . . . . . Combat Hostiles . | . . . . . . Parts Fried . | . . . . . . Impact Corruptions . | . . . . . . Robots Melted . | . . . . . . Combat Hostiles . | . . . . . . Parts Melted 1 | . . . 1 . . Heat Transferred 1406 | . . 518 777 111 . Parts Sabotaged . | . . . . . . Parts Stolen . | . . . . . . Parts Stripped . | . . . . . . Power Chain Reactions 1 | . 1 . . . . Missiles Intercepted . | . . . . . . Alert | -11 -10 -10 -9 -9 -9 ------- Run | Scr Mat Min Mat Min Exi Peak Influence 222 | . 127 54 222 147 . Initial 61 | . . 34 12 61 . Average 59 | . 59 36 98 136 . Maximum Alert Level 1 | . . . 1 . . Low Security (%) 98 | 100 100 100 90 100 . Level 1 1 | . . . 9 . . Level 2 . | . . . . . . Level 3 . | . . . . . . Level 4 . | . . . . . . Level 5 . | . . . . . . High Security . | . . . . . . Max Security . | . . . . . . Squads Dispatched 3 | . 1 . 2 . . Investigation 1 | . 1 . . . . Extermination . | . . . . . . Reinforcement 2 | . . . 2 . . Assault . | . . . . . . Garrison . | . . . . . . Intercept . | . . . . . . Searches Triggered . | . . . . . . Construction Impeded . | . . . . . . Haulers Reinforced . | . . . . . . Active Scanning Responses . | . . . . . . Cargo Convoy Interrupts . | . . . . . . Stealth | -11 -10 -10 -9 -9 -9 --------- Run | Scr Mat Min Mat Min Exi Distress Signals 2 | . . 2 . . . Communications Jammed . | . . . . . . Distress Signals . | . . . . . . Times Spotted 63 | . 10 7 10 3 33 Peak Tracking Total 27 | . 3 6 4 3 27 Tactical Retreats 1 | . . 1 . . . Traps | -11 -10 -10 -9 -9 -9 ------- Run | Scr Mat Min Mat Min Exi Traps Triggered . | . . . . . . Indirectly . | . . . . . . Trap Hack Attempts . | . . . . . . Triggered . | . . . . . . Disarmed . | . . . . . . Reprogrammed 6 | . 6 . . . . Reused . | . . . . . . Traps Extracted . | . . . . . . Installed . | . . . . . . Triggered . | . . . . . . Machines | -11 -10 -10 -9 -9 -9 ---------- Run | Scr Mat Min Mat Min Exi Machines Disabled 5 | . . . . . 5 Max in Single Turn 3 | . . . . . 3 Machines Sabotaged . | . . . . . . Garrisons Compromised . | . . . . . . Overloaded Fab Kills . | . . . . . . Hacking | -11 -10 -10 -9 -9 -9 --------- Run | Scr Mat Min Mat Min Exi Machines Accessed 6 | . 6 . . . . Terminals 6 | . 6 . . . . Fabricators . | . . . . . . Repair Stations . | . . . . . . Recycling Units . | . . . . . . Scanalyzers . | . . . . . . Garrison Access . | . . . . . . Total Hacks 17 | . 17 . . . . Successful 10 | . 10 . . . . Failed 7 | . 7 . . . . Catastrophic . | . . . . . . Database Lockouts . | . . . . . . Manual 1 | . . . . . 1 Terminals 17 | . 17 . . . . Fabricators . | . . . . . . Repair Stations . | . . . . . . Recycling Units . | . . . . . . Scanalyzers . | . . . . . . Garrison Access . | . . . . . . Terminal Hacks 10 | . 10 . . . . Prototype ID Bank 3 | . 3 . . . . Branch Access Points 1 | . 1 . . . . Emergency Access Points 1 | . 1 . . . . Locate Traps 3 | . 3 . . . . Reprogram Traps 1 | . 1 . . . . Zone Layout 1 | . 1 . . . . Fabricator Hacks . | . . . . . . Repair Station Hacks . | . . . . . . Recycling Unit Hacks . | . . . . . . Scanalyzer . | . . . . . . Garrison Access Hacks . | . . . . . . Unauthorized Hacks . | . . . . . . Terminals . | . . . . . . Fabricators . | . . . . . . Repair Stations . | . . . . . . Recycling Units . | . . . . . . Scanalyzers . | . . . . . . Garrison Access . | . . . . . . Data Cores Recovered . | . . . . . . Used . | . . . . . . Hacking Detections 4 | . 4 . . . . Full Trace Events 2 | . 2 . . . . Feedback Events . | . . . . . . Feedback Blocked . | . . . . . . Robot Schematics Acquired . | . . . . . . Robots Built . | . . . . . . Authchips . | . . . . . . Time . | . . . . . . Total Robot Build Rating . | . . . . . . Part Schematics Acquired . | . . . . . . Parts Built . | . . . . . . Authchips . | . . . . . . Time . | . . . . . . Total Part Build Rating . | . . . . . . Parts Repaired . | . . . . . . Time . | . . . . . . Parts Recycled . | . . . . . . Recycled Matter . | . . . . . . Retrieved Matter . | . . . . . . Retrieved Components . | . . . . . . Parts Scanalyzed . | . . . . . . Part Schematics Acquired . | . . . . . . Parts Damaged . | . . . . . . Bothacking | -11 -10 -10 -9 -9 -9 ------------ Run | Scr Mat Min Mat Min Exi Used RIF Installer . | . . . . . . Robots Hacked . | . . . . . . Non-combat . | . . . . . . Combat . | . . . . . . Robot Hacks Applied . | . . . . . . Relay Couplers Released . | . . . . . . Fabnet Peak Effective % . | . . . . . . Robots Rewired . | . . . . . . Allies Hacked . | . . . . . . Hacks Repelled . | . . . . . . Allies | -11 -10 -10 -9 -9 -9 -------- Run | Scr Mat Min Mat Min Exi Total Allies 2 | . . . . 2 . Largest Group 2 | . . . . 2 2 Highest-Rated Group 52 | . . . . 52 52 Highest-Rated Ally 31 | . . . . 31 31 Total Orders . | . . . . . . Ally Attacks 6 | . . . . 6 . Total Damage 42 | . . . . 42 . Kills 2 | . . . . 2 . Allies Corrupted . | . . . . . . Allies Melted . | . . . . . . Intel | -11 -10 -10 -9 -9 -9 ------- Run | Scr Mat Min Mat Min Exi Robot Analysis Total . | . . . . . . Derelict Logs Recovered . | . . . . . . Drone Launches . | . . . . . . Drone Recoveries . | . . . . . . Exploration | -11 -10 -10 -9 -9 -9 ------------- Run | Scr Mat Min Mat Min Exi Turns Passed 1839 | 76 556 333 240 40 594 Spaces Moved 1303 | 53 390 235 140 22 463 Core 12 | 4 . . . . 8 Treads . | . . . . . . Legs 1291 | 49 390 235 140 22 455 Wheels . | . . . . . . Hover . | . . . . . . Flight . | . . . . . . Fastest Speed 50 | 50 120 120 120 120 50 Average Speed 120 | 114 120 127 120 120 118 Slowest Speed 190 | 120 120 190 120 120 120 Overloaded Moves . | . . . . . . Propulsion Burnouts . | . . . . . . Robots Hopped . | . . . . . . Cave-ins Triggered . | . . . . . . Exploration Rate (%) 36 | 4 61 49 15 8 83 Regions Visited 5 Branch Regions 3 Pre-discovered Areas . | . . . . . . Known Exits Taken 5 | 1 1 1 1 1 . Unknown Exits Taken . | . . . . . . Scrap Searched . | . . . . . . Spaces Dug . | . . . . . . Terrain Destroyed 56 | . 2 . . . 54 Melee . | . . . . . . Projectile . | . . . . . . AOE 56 | . 2 . . . 54 Terrain Rammed . | . . . . . . Walls Destroyed . | . . . . . . Machines Disabled . | . . . . . . Actions | -11 -10 -10 -9 -9 -9 --------- Run | Scr Mat Min Mat Min Exi Total 1461 | 64 443 250 186 29 489 Wait 44 | . 13 . 31 . . Move 1298 | 52 389 234 139 21 463 Hop . | . . . . . . Pick Up 20 | 5 9 2 . 2 2 Fast Attach 11 | 7 2 . 1 . 1 Attach 8 | . 1 3 1 . 3 Detach 1 | . 1 . . . . Swap 8 | . 1 . 2 2 3 Drop 12 | . 6 1 . 1 4 Fire 59 | . 21 10 12 3 13 Melee . | . . . . . . Ram . | . . . . . . Kick . | . . . . . . Crush . | . . . . . . Escape Stasis . | . . . . . . Rewire . | . . . . . . Trap . | . . . . . . Miscellaneous . | . . . . . . Route ------- -11/Scrapyard -10/Materials (discovered 3 exits: *Mat / *Min x2) -10/Mines -9/Materials -9/Mines -9/Exiles (discovered 1 exit: *Min) History --------- Turn | Location | Event 2 | -11/Scrapyard | Identified exit to Materials 2 | -11/Scrapyard | Discovered exit to Materials (range 16) 77 | -11/Scrapyard | Entered Materials 77 | -10/Materials | Evolved 1 slot: Utility x1 246 | -10/Materials | Identified exit to Materials 246 | -10/Materials | Discovered exit to Materials (range 8) 308 | -10/Materials | Build established: Hacker-Mutant 361 | -10/Materials | Identified exit to Mines 361 | -10/Materials | Discovered exit to Mines (range 11) 633 | -10/Materials | Entered Mines 872 | -10/Mines | Assembled infested the area 877 | -10/Mines | Discovered exit to Materials (range 12) 966 | -10/Mines | Entered Materials 966 | -9/Materials | Evolved 2 slots: Propulsion x1, Utility x1 1000 | -9/Materials | Identified exit to Mines 1000 | -9/Materials | Discovered exit to Mines (range 15) 1206 | -9/Materials | Entered Mines 1240 | -9/Mines | Deemed a non-threat by the Exiles lab entrance 1240 | -9/Mines | Identified exit to Exiles 1240 | -9/Mines | Discovered exit to Exiles (range 5) 1246 | -9/Mines | Entered Exiles 1246 | -9/Exiles | Accompanied by 2 allies 1268 | -9/Exiles | Identified exit to Mines 1268 | -9/Exiles | Discovered exit to Mines (range 15) 1276 | -9/Exiles | Led the pair of lost Derelicts to a safe place 1290 | -9/Exiles | Met 8R-AWN 1314 | -9/Exiles | Met EX-HEX 1352 | -9/Exiles | Met EX-BIN 1369 | -9/Exiles | Aligned with FarCom system 1370 | -9/Exiles | Given EX-Vault access code 1398 | -9/Exiles | Opened EX-Vault 1411 | -9/Exiles | Found Prototype Device 1411 | -9/Exiles | Identified Skeleton Box 1450 | -9/Exiles | Exiles lab attacked by MAIN.C 1836 | -9/Exiles | Released all parts (5) 1837 | -9/Exiles | Core integrity fell below 50% 1839 | -9/Exiles | Core integrity fell below 20% 1840 | -9/Exiles | Destroyed by P-60 Hacker with Shock Rifle Last Messages --------------- 01818_ Machine disabled. 01821_ Acquired 2 matter. 01826_ Penetrated by Slug. 01826_ Machine disabled. 01829_ Lgt. Armor Plating destroyed. 01829_ Aluminum Leg destroyed. 01832_ Machine disabled. 01834_ Aluminum Leg destroyed. 01834_ Dropped Lgt. Nuclear Core. 01835_ Aluminum Leg destroyed. 01835_ Slug penetrates Machine. 01836_ Penetrated by Slug. 01836_ Released Targeting Computer. 01836_ Released Med. Storage Unit. 01836_ Released Seismic Detector. 01836_ Released Lgt. Assault Rifle. 01836_ Released Grenade Launcher. 01837_ Penetrated by Slug. 01838_ G-34 Mercenary destroyed. 01840_ P-60 Hacker resets G-34 Mercenary, system corruption cleaned. Map ----- +----------------------------------------------------+ | ???????#" """ #?????????????????????????? | | ???????#" """""""""#?????????????????????????? | | ??????##" ###########?????????????????????????? | | ?????##"" #???????????????????????????????????? | | ######"" #???????????????????????????????????? | | #""""""" ##??????????????????????????????????? | | """ " "" ##???###########???????????????????? | | """ " #####"""""""""##??????????????????? | | " " """ """"##?????????????????? | | "" " #?????????????????? | | " """#?????????????????? | | "a"#???????????#####?? | | " "##?????????##" #?? | | !%[ ""###???????#" #?? | | """""" g """#??????##" ##? | | ######"" "#????### ## | | ""##????##### p ##???# | | ""##?????????# h ##?## | | "##?????????## ### | | "#??????????# g p hg ## | | ########??####"g p h g= #### | | %[## ####""" gggg h %[ p ""#?#"""" | | = !% """" % ! #"""##?##### | | |%!%% g % #####??????? | | %% [% g ##???????????? | | [ = !! l " @ ##????????????? | | *%! " !b[ """ #?????????????? | | "## ##"" ]![ ""#" ##?????????????? | | #### ###### " """##" # #?????????????? | | """##??# #????###""""##### # #??????????????? | | """#???# #??????######???? #??????????????? | | ""##???! ?????????????????######??????????????? | | "##????" ?????????????????????????????????????? | | ##????#" ????????????????????????????????????? | | ##?????#!!""!????????????????????????????????????? | | #??????#######???????????????????????????????????? | | #????????????????????????????????????????????????? | | ?????????????????????????????????????????????????? | | ?????????????????????????????????????????????????? | | ?????????????????????????????????????????????????? | | ?????????????????????????????????????????????????? | | ?????????????????????????????????????????????????? | | ?????????????????????????????????????????????????? | | ?????????????????????????????????????????????????? | | ?????????????????????????????????????????????????? | | ?????????????????????????????????????????????????? | | ?????????????????????????????????????????????????? | | #######?####?????????????????????????????????????? | | """"""#"""""#????????????????????????????????????? | | "#"" ""#????????????????????????????????????? | +----------------------------------------------------+ Best States ------------- Heat Dissipation 28 Energy Generation 14 Energy Capacity 250 Matter Stores 300 Matter Capacity 300 Sight Range 16 Terrain Scan Density 10 Armor Coverage 150 Resistance: KI 35 Resistance: TH 35 Resistance: EX 35 Resistance: EM 35 Resistance: I 35 Resistance: S 35 Resistance: P 35 Evasion (%) 55 Targeting Accuracy 5 Offensive Hacking 20 Item Schematics ----------------- None Robot Schematics ------------------ None Fabricated ------------ Nothing Alien Tech Used ----------------- None Achievements -------------- None Challenges ------------ None Game ------ Seed PointStasisStorm Manual? 0 Play Time 00:24:23 Cumulative 38.0 hours Start 2022.04.04 @ 14:43:04 End 2022.04.04 @ 21:12:09 Sessions 1 Manual Loads 0 Difficulty Explorer Special Mode None Game No. 9 Rogue 0 Adventurer 1 Explorer 8 Win Type - Total 2 Types 1/0/0/1/0/0/0/0/0 Lore% 32 Gallery% 46 Achievement% 40 Wizard Run 0 Options --------- ASCII 0 Keyboard 0 Movement Arrows Keybinds 0 Fullscreen 0 Font 14/Terminus Map View 76x50 Tactical HUD 1 Map Filters NONE Filters NONE Steam 1 RUN: cd5dfe30-6b13-461b-a3b2-8ceba85d279a